bitfinex-derivatives/quotes_SOLF0:USTF0_20250518
["timestamp","ask_amount","ask_price","bid_price","bid_amount"]
[1747552232056,58.82,169.63,169.53,58.82]
[1747552232362,5.8932,169.63,169.53,58.82]
[1747552233067,5.8932,169.63,169.59,5.8943]
[1747552234762,5.8936,169.62,169.59,5.8943]
[1747552234960,5.8936,169.62,169.58,5.8948]
[1747552235261,58.82,169.64,169.58,5.8948]
[1747552236263,5.8937,169.62,169.58,5.8948]
[1747552236562,58.82,169.64,169.58,5.8948]
[1747552236963,58.82,169.64,169.59,5.8944]
[1747552237565,5.8933,169.63,169.59,5.8944]
[1747552240268,58.82,169.65,169.61,5.8938]
[1747552240462,58.82,169.64,169.61,5.8938]
[1747552240762,58.82,169.65,169.61,5.8938]
[1747552241063,5.8928,169.64,169.61,5.8938]
[1747552241467,58.8,169.66,169.62,5.8934]
[1747552241767,5.8925,169.65,169.62,5.8934]
[1747552243363,58.8,169.68,169.57,64.7493]
[1747552243567,140.91502732,169.69,169.57,64.7493]
[1747552244268,5.8915,169.68,169.64,5.8925]
[1747552244464,140.91502732,169.69,169.64,5.8925]
[1747552244665,140.91502732,169.69,169.61,58.8]
[1747552244867,5.8918,169.67,169.63,5.8929]
[1747552245070,5.8918,169.67,169.61,58.8]
[1747552246367,88.00632732,169.69,169.61,58.8]
[1747552246567,84.07272732,169.69,169.61,58.8]
[1747552246864,78.18142732,169.69,169.61,58.8]
[1747552247571,5.8915,169.68,169.65,5.8922]
[1747552247770,78.18142732,169.69,169.61,58.8]
[1747552248477,5.892,169.67,169.64,5.8926]
[1747552248874,78.18142732,169.69,169.61,58.8]
[1747552249376,5.8919,169.67,169.63,5.8928]
[1747552249575,78.18142732,169.69,169.63,5.8928]
[1747552249769,78.18142732,169.69,169.61,58.8]
[1747552250076,5.8919,169.67,169.64,5.8926]
[1747552250273,78.18142732,169.69,169.61,58.8]
[1747552250575,5.8915,169.68,169.61,58.8]
[1747552251878,5.8918,169.67,169.65,5.8924]
[1747552252073,5.8918,169.67,169.61,58.8]
[1747552252475,5.8922,169.66,169.61,58.8]
[1747552252777,78.18142732,169.69,169.61,58.8]
[1747552253281,5.8919,169.67,169.63,5.8928]
[1747552253480,5.8919,169.67,169.61,58.8]
[1747552253779,78.18142732,169.69,169.61,58.8]
[1747552254580,5.8915,169.68,169.65,5.8924]
[1747552260590,5.8915,169.68,169.61,58.8]
[1747552261489,5.8915,169.68,169.61,62.07434622]
[1747552262190,9.16554622,169.69,169.66,5.892]
[1747552263089,3.27434622,169.67,169.5,11.7947]
[1747552263284,3.27715037,169.62,169.59,7.36197408]
[1747552263489,3.27716528,169.62,169.59,7.36197408]
[1747552263686,5.8939,169.61,169.59,7.36197408]
[1747552264182,62.03716528,169.62,169.55,483.3]
[1747552264889,5.8948,169.59,169.55,489.1956]
[1747552266387,5.8948,169.59,169.56,5.8954]
[1747552267597,5.8948,169.59,169.55,483.3]
[1747552267598,5.895,169.58,169.55,489.1959]
[1747552267993,58.76,169.62,169.55,483.3]
[1747552268193,5.8955,169.57,169.55,58.76]
[1747552268399,63.88170054,169.58,169.49,60.698]
[1747552268998,5.8965,169.54,169.5,5.8974]
[1747552269198,5.8965,169.54,169.49,60.698]
[1747552270100,63.88170054,169.58,169.49,60.698]
[1747552271001,63.88170054,169.58,169.49,58.76]
[1747552271201,65.84600054,169.58,169.49,58.76]
[1747552271703,5.8965,169.54,169.5,5.8975]
[1747552272705,5.8959,169.55,169.51,5.8972]
[1747552274106,5.8964,169.54,169.5,5.8975]
[1747552274408,5.8964,169.54,169.49,58.76]
[1747552275008,5.896,169.55,169.51,5.8973]
[1747552275606,5.896,169.55,169.49,58.76]
[1747552275807,5.8957,169.56,169.52,5.8967]
[1747552276009,5.8957,169.56,169.49,58.76]
[1747552276309,5.8953,169.57,169.49,58.76]
[1747552277305,5.8953,169.57,169.53,5.8964]
[1747552277510,5.8956,169.56,169.53,5.8964]
[1747552277815,65.84600054,169.58,169.51,5.8971]
[1747552278107,5.8958,169.56,169.49,58.76]
[1747552278309,5.8958,169.56,169.52,5.8969]
[1747552279413,5.896,169.55,169.52,5.8969]
[1747552279816,65.84600054,169.58,169.51,5.8972]
[1747552280112,5.8963,169.54,169.49,58.76]
[1747552280312,65.84600054,169.58,169.5,5.8975]
[1747552281010,65.84600054,169.58,169.49,58.76]
[1747552281613,5.8958,169.56,169.52,5.8969]
[1747552283315,5.896,169.55,169.51,5.8972]
[1747552284115,5.8964,169.54,169.51,5.8972]
[1747552284613,5.8964,169.54,169.5,5.8976]
[1747552285713,5.8967,169.53,169.5,5.8976]
[1747552287217,65.84600054,169.58,169.49,58.76]
[1747552288115,5.8962,169.55,169.49,58.76]
[1747552288616,5.8963,169.54,169.51,5.897]
[1747552289019,65.84600054,169.58,169.49,58.76]
[1747552289218,65.84600054,169.58,169.5,5.8974]
[1747552289219,5.8967,169.53,169.5,5.8974]
[1747552289822,5.8964,169.54,169.51,5.8973]
[1747552290415,117.58,169.53,169.39,1.02676069]
[1747552290620,5.13001229,169.5,169.37,58.8]
[1747552290812,5.13001229,169.5,169.38,1.18077695]
[1747552291014,5.8982,169.49,169.38,1.18077695]
[1747552291217,5.13001229,169.5,169.38,1.18077695]
[1747552291418,5.8985,169.48,169.45,5.8991]
[1747552291619,5.8985,169.48,169.42,58.84]
[1747552291816,5.8985,169.48,169.43,58.84]
[1747552292518,5.8985,169.48,169.44,5.8996]
[1747552293215,5.8985,169.48,169.45,5.8993]
[1747552294019,5.8981,169.49,169.45,5.8993]
[1747552294818,5.8985,169.48,169.45,5.8993]
[1747552305627,5.8981,169.49,169.46,5.899]
[1747552305830,5.13001229,169.53,169.43,58.84]
[1747552306028,5.13001229,169.53,169.44,1.9198]
[1747552306621,5.8972,169.52,169.49,5.8977]
[1747552307328,5.8967,169.53,169.5,5.8976]
[1747552307828,64.7764,169.54,169.51,5.8973]
[1747552308628,5.896,169.55,169.52,5.8969]
[1747552309629,5.896,169.55,169.51,5.8972]
[1747552309930,5.8963,169.54,169.51,5.8972]
[1747552310829,5.8967,169.53,169.5,5.8976]
[1747552311027,64.01001229,169.56,169.48,3.9664]
[1747552311833,5.8965,169.54,169.5,5.8974]
[1747552312327,64.01001229,169.56,169.5,5.8974]
[1747552312625,5.8965,169.54,169.5,5.8974]
[1747552314531,5.8965,169.54,169.51,5.8973]
[1747552314829,5.896,169.55,169.48,3.9664]
[1747552315029,64.01001229,169.56,169.48,3.9664]
[1747552316229,5.8965,169.54,169.5,5.8975]
[1747552316929,5.8965,169.54,169.51,5.8973]
[1747552318230,5.896,169.55,169.52,5.8969]
[1747552318730,69.90571229,169.56,169.53,5.8964]
[1747552318931,69.82571229,169.56,169.53,5.8964]
[1747552319134,63.93001229,169.56,169.48,3.9664]
[1747552319633,5.8959,169.55,169.48,3.9664]
[1747552319834,63.93001229,169.56,169.48,3.9664]
[1747552320231,5.8965,169.54,169.51,5.8973]
[1747552320632,63.93001229,169.56,169.48,3.9664]
[1747552320926,5.8969,169.53,169.5,5.8976]
[1747552321328,5.8964,169.54,169.51,5.8973]
[1747552322032,5.8967,169.53,169.5,5.8976]
[1747552322931,5.8967,169.53,169.51,5.8973]
[1747552323128,63.93001229,169.56,169.48,3.9664]
[1747552323440,3.28013653,169.53,169.48,3.9664]
[1747552323624,3.28013653,169.53,169.51,5.8971]
[1747552323828,3.28013653,169.53,169.48,3.9664]
[1747552324334,3.28013653,169.53,169.52,5.897]
[1747552327944,3.28013653,169.53,169.51,5.8972]
[1747552328540,3.28013653,169.53,169.52,5.897]
[1747552328740,3.28013653,169.53,169.48,3.9664]
[1747552329040,3.28013653,169.53,169.51,5.897]
[1747552329242,3.28013653,169.53,169.48,3.9664]
[1747552331039,3.28013653,169.53,169.51,5.8971]
[1747552331240,3.28013653,169.53,169.48,3.9664]
[1747552332441,3.28013653,169.53,169.51,5.897]
[1747552334338,3.28013653,169.53,169.52,5.897]
[1747552336748,3.28013653,169.53,169.51,5.8972]
[1747552340951,3.28013653,169.53,169.5,5.8975]
[1747552341549,3.28048654,169.52,169.5,5.8975]
[1747552341951,5.8965,169.54,169.51,5.8973]
[1747552342152,3.28036715,169.53,169.47,64.38903332]
[1747552342353,3.28036715,169.53,169.47,58.86]
[1747552342658,3.28036715,169.53,169.51,5.897]
[1747552342855,3.2799618,169.54,169.47,58.86]
[1747552343463,7.37337837,169.55,169.47,62.1399618]
[1747552343651,10.65288334,169.55,169.47,58.86]
[1747552344256,16.54878334,169.55,169.52,5.8967]
[1747552344857,9.17540497,169.55,169.52,5.8967]
[1747552345855,3.27990139,169.53,169.5,5.8973]
[1747552347660,3.28026533,169.53,169.51,5.8972]
[1747552347959,3.28026533,169.53,169.47,64.38903332]
[1747552348159,3.28026533,169.53,169.51,5.8971]
[1747552348663,3.28026533,169.53,169.47,64.38903332]
[1747552349562,3.27985891,169.54,169.47,64.38903332]
[1747552349961,3.27985891,169.54,169.51,5.8971]
[1747552350159,3.27985891,169.54,169.47,64.38903332]
[1747552351560,3.27985891,169.54,169.52,5.8968]
[1747552351761,5.8962,169.55,169.52,5.8968]
[1747552351955,3.27985891,169.54,169.52,5.8968]
[1747552354067,9.17615891,169.54,169.51,5.8973]
[1747552354560,3.27985891,169.54,169.47,64.38903332]
[1747552355664,7.37337837,169.56,169.47,67.66889223]
[1747552355869,7.37337837,169.56,169.55,5.8959]
[1747552357471,3.27796206,169.59,169.57,5.895]
[1747552357667,58.76,169.6,169.57,5.895]
[1747552357869,3.27796206,169.59,169.57,5.895]
[1747552358869,58.76,169.6,169.56,5.8955]
[1747552359064,3.27796206,169.59,169.52,62.03796206]
[1747552359974,3.27796206,169.59,169.57,5.8949]
[1747552361872,58.76,169.62,169.57,5.8949]
[1747552362067,5.8939,169.61,169.58,5.8948]
[1747552362373,3.27796206,169.6,169.58,5.8948]
[1747552362572,3.27796206,169.6,169.57,5.8951]
[1747552363073,3.27796206,169.6,169.52,62.03796206]
[1747552363568,58.76,169.63,169.52,62.03796206]
[1747552363569,3.27796206,169.61,169.52,62.03796206]
[1747552364970,3.27796206,169.6,169.52,62.03796206]
[1747552365475,3.27796206,169.6,169.58,5.8948]
[1747552366181,3.27796206,169.6,169.57,5.8952]
[1747552367777,3.27796206,169.6,169.58,5.8949]
[1747552368772,3.27796206,169.6,169.59,5.8945]
[1747552370878,3.27796206,169.6,169.58,5.8947]
[1747552372083,3.27796206,169.6,169.53,58.74]
[1747552372279,3.27796206,169.57,169.53,58.74]
[1747552372479,3.27796206,169.55,169.54,5.8961]
[1747552374887,3.27796206,169.55,169.53,64.6365]
[1747552376485,3.27796206,169.55,169.54,5.8962]
[1747552377985,3.27796206,169.55,169.51,5.6198]
[1747552378183,3.27796206,169.55,169.51,3.7891]
[1747552378987,58.74,169.6,169.51,3.7891]
[1747552379194,3.27796206,169.56,169.51,3.7891]
[1747552379707,3.27796206,169.56,169.54,5.896]
[1747552379990,3.27796206,169.56,169.51,3.7891]
[1747552380395,3.27796206,169.56,169.55,5.8959]
[1747552380595,3.27796206,169.58,169.51,3.7891]
[1747552381294,3.27796206,169.58,169.56,5.8953]
[1747552381696,9.17286206,169.58,169.52,1.9196]
[1747552382094,3.27796206,169.58,169.52,1.9196]
[1747552382293,3.27796206,169.58,169.55,5.8956]
[1747552383398,5.8946,169.59,169.55,5.8956]
[1747552383894,5.8949,169.58,169.55,5.8956]
[1747552386897,5.8946,169.59,169.56,5.8955]
[1747552387996,5.8943,169.6,169.52,1.9196]
[1747552388194,122.60269048,169.61,169.52,1.9196]
[1747552388595,117.48,169.61,169.52,1.9196]
[1747552389094,123.3741,169.61,169.58,5.8947]
[1747552389285,64.6341,169.61,169.58,5.8947]
[1747552389490,117.48,169.61,169.52,1.9196]
[1747552389689,58.74,169.61,169.53,58.74]
[1747552389991,58.74,169.61,169.54,58.72]
[1747552390390,58.74,169.61,169.58,5.8945]
[1747552390592,58.74,169.61,169.54,58.72]
[1747552390791,5.8932,169.63,169.54,58.72]
[1747552390991,64.6332,169.63,169.54,58.72]
[1747552391393,5.8935,169.62,169.59,5.8943]
[1747552393399,5.8933,169.63,169.6,5.8941]
[1747552394299,7.37337837,169.64,169.59,5.8944]
[1747552394300,5.8935,169.62,169.59,5.8944]
[1747552398601,13.26657837,169.63,169.6,5.8941]
[1747552398803,7.37337837,169.63,169.6,5.8941]
[1747552399103,5.8944,169.6,169.57,5.8951]
[1747552399503,5.8944,169.6,169.54,58.72]
[1747552399698,7.37337837,169.63,169.54,58.72]
[1747552400400,5.894,169.61,169.54,58.72]
[1747552400608,7.37337837,169.63,169.54,58.72]
[1747552400899,5.8937,169.62,169.54,58.72]
[1747552401204,7.37337837,169.63,169.54,58.72]
[1747552401607,13.26667837,169.63,169.6,5.894]
[1747552402008,7.37337837,169.63,169.54,58.72]
[1747552402305,66.09337837,169.64,169.54,58.72]
[1747552403006,5.8941,169.61,169.58,5.8947]
[1747552403305,3.27753677,169.6,169.58,5.8947]
[1747552403507,3.27753677,169.6,169.54,58.72]
[1747552404207,3.27753677,169.6,169.58,5.8946]
[1747552408409,3.27753677,169.6,169.59,5.8945]
[1747552409811,5.8936,169.62,169.59,5.8945]
[1747552410003,3.27753677,169.61,169.59,5.8945]
[1747552410208,5.8933,169.63,169.6,5.8942]
[1747552410417,3.27753677,169.62,169.6,5.8942]
[1747552411618,9.17113677,169.62,169.59,5.8944]
[1747552411918,9.17113677,169.62,169.54,61.99753677]
[1747552412114,3.27753677,169.62,169.54,61.99753677]
[1747552412313,3.27753677,169.62,169.6,5.8942]
[1747552413621,5.8933,169.63,169.6,5.8942]
[1747552413822,3.27753677,169.61,169.6,5.8942]
[1747552414022,3.27753677,169.63,169.61,5.8938]
[1747552414323,3.27753677,169.63,169.54,61.99753677]
[1747552415022,9.17093677,169.63,169.54,61.99753677]
[1747552415223,3.27753677,169.63,169.54,61.99753677]
[1747552415727,5.8937,169.62,169.58,5.8946]
[1747552416021,5.8937,169.62,169.54,61.99753677]
[1747552417120,5.8937,169.62,169.59,5.8943]
[1747552418140,9.17073677,169.63,169.6,5.894]
[1747552419538,3.27753677,169.63,169.6,5.894]
[1747552419844,3.27753677,169.63,169.54,61.99753677]
[1747552420548,9.17083677,169.63,169.6,5.894]
[1747552422446,5.8936,169.62,169.6,5.894]
[1747552423545,9.17093677,169.63,169.6,5.894]
[1747552425347,3.27753677,169.63,169.6,5.894]
[1747552425548,3.27753677,169.63,169.61,5.8937]
[1747552425746,3.27753677,169.63,169.54,61.99753677]
[1747552426047,9.17073677,169.63,169.6,5.894]
[1747552426247,9.17073677,169.63,169.54,61.99753677]
[1747552426944,9.17073677,169.63,169.6,5.894]
[1747552427147,13.26627837,169.64,169.54,61.99753677]
[1747552427355,3.27753677,169.63,169.54,61.99753677]
[1747552428155,3.27753677,169.63,169.6,5.8939]
[1747552428352,9.17103677,169.63,169.6,5.8939]
[1747552428852,9.17103677,169.63,169.59,5.8943]
[1747552430852,5.8935,169.62,169.59,5.8943]
[1747552432861,9.17083677,169.63,169.59,5.8943]
[1747552433162,9.17083677,169.63,169.6,5.8941]
[1747552433363,16.54421514,169.63,169.6,5.8941]
[1747552433662,10.65091514,169.63,169.6,5.8941]
[1747552434464,10.65091514,169.63,169.61,5.8938]
[1747552434651,10.65091514,169.63,169.58,58.68]
[1747552434857,7.37337837,169.63,169.58,65.99443677]
[1747552435057,7.37337837,169.63,169.59,2.0011]
[1747552435257,7.37337837,169.63,169.62,5.8935]
[1747552435765,7.37337837,169.65,169.63,5.8931]
[1747552435968,7.37337837,169.65,169.59,2.0011]
[1747552436367,7.37337837,169.65,169.62,5.8933]
[1747552436665,7.37337837,169.65,169.59,2.0011]
[1747552437258,10.64881616,169.65,169.59,2.0011]
[1747552437560,5.8929,169.64,169.61,5.8936]
[1747552438359,16.54141616,169.65,169.61,5.8936]
[1747552438867,10.64881616,169.65,169.61,5.8936]
[1747552439374,3.27543779,169.65,169.61,5.8936]
[1747552439659,3.27543779,169.65,169.62,5.8934]
[1747552439870,9.16793779,169.65,169.62,5.8934]
[1747552440367,3.27543779,169.65,169.62,5.8934]
[1747552440567,3.27543779,169.65,169.63,5.8931]
[1747552441268,7.37337837,169.66,169.64,5.8927]
[1747552441467,7.37337837,169.66,169.59,2.0011]
[1747552441664,7.37337837,169.66,169.62,3.27543779]
[1747552441971,11.06006755,169.68,169.64,3.27543779]
[1747552442571,11.06006755,169.68,169.63,58.68]
[1747552442766,11.06006755,169.68,169.67,5.8918]
[1747552445468,5.8901,169.72,169.68,5.8911]
[1747552445673,64.5498,169.73,169.64,1.9938]
[1747552445871,58.66,169.73,169.64,1.9938]
[1747552446072,58.66,169.73,169.7,5.8905]
[1747552447571,64.5497,169.73,169.7,5.8905]
[1747552448073,64.5497,169.73,169.69,5.891]
[1747552449276,58.66,169.73,169.7,5.8906]
[1747552449572,58.66,169.73,169.65,1.87]
[1747552449973,64.5499,169.73,169.69,5.891]
[1747552450673,64.5499,169.73,169.7,5.8907]
[1747552452175,64.5499,169.73,169.69,5.8909]
[1747552452368,5.89,169.72,169.69,5.8909]
[1747552452676,58.66,169.73,169.69,5.8909]
[1747552452872,64.5498,169.73,169.7,5.8906]
[1747552453476,58.66,169.73,169.71,5.8901]
[1747552454172,5.11467239,169.78,169.67,58.62]
[1747552454379,117.26,169.77,169.67,58.62]
[1747552454677,58.64,169.76,169.67,58.62]
[1747552454870,64.5287,169.76,169.72,5.8898]
[1747552455374,64.5083,169.77,169.73,5.8895]
[1747552455675,58.64,169.76,169.73,5.8895]
[1747552456979,58.64,169.76,169.74,5.8893]
[1747552457280,58.64,169.76,169.67,58.62]
[1747552457974,64.5286,169.76,169.67,58.62]
[1747552458178,64.5286,169.76,169.73,5.8894]
[1747552458375,58.64,169.76,169.73,5.8894]
[1747552458576,60.4653,169.79,169.71,58.62]
[1747552459073,66.3532,169.79,169.71,60.5661]
[1747552459275,7.7332,169.79,169.71,60.5661]
[1747552459579,5.8879,169.79,169.71,60.5661]
[1747552459879,5.8879,169.79,169.75,5.8887]
[1747552460080,136.74989084,169.8,169.71,62.5782]
[1747552460282,78.12989084,169.8,169.71,62.5782]
[1747552460780,12.98536755,169.83,169.73,5.11467239]
[1747552460979,12.98536755,169.83,169.74,58.62]
[1747552461177,5.8866,169.82,169.78,5.8877]
[1747552461886,5.8863,169.83,169.75,58.62]
[1747552462180,58.62,169.84,169.75,58.62]
[1747552462387,5.8863,169.83,169.78,5.8876]
[1747552462683,58.62,169.84,169.75,58.62]
[1747552462883,5.8865,169.83,169.79,5.8875]
[1747552463780,58.62,169.85,169.75,58.62]
[1747552463975,58.62,169.87,169.76,5.11467239]
[1747552464178,2.0305,169.88,169.76,5.11467239]
[1747552464483,60.6705,169.88,169.83,5.8859]
[1747552465183,66.5552,169.88,169.84,5.8858]
[1747552465383,2.0305,169.88,169.84,5.8858]
[1747552466085,7.9153,169.88,169.83,5.8861]
[1747552466979,5.8848,169.87,169.83,5.8861]
[1747552467884,5.8848,169.87,169.82,5.8864]
[1747552468081,5.8852,169.86,169.82,5.8864]
[1747552468586,2.0305,169.88,169.81,58.6]
[1747552468987,2.0305,169.88,169.82,5.8863]
[1747552469285,1.9308,169.91,169.81,58.6]
[1747552469584,5.8844,169.89,169.81,58.6]
[1747552470386,60.7308,169.91,169.81,58.6]
[1747552470786,5.8847,169.88,169.84,5.8856]
[1747552471089,60.7308,169.91,169.81,58.6]
[1747552471785,5.8844,169.89,169.84,5.8859]
[1747552471992,5.8844,169.89,169.81,58.6]
[1747552472992,1.9168,169.94,169.82,5.11467239]
[1747552473503,7.7993,169.94,169.89,5.8838]
[1747552473686,7.7993,169.94,169.88,58.72]
[1747552474487,7.7993,169.94,169.88,64.6044]
[1747552474791,5.883,169.93,169.88,64.6044]
[1747552474992,1.9168,169.94,169.88,58.72]
[1747552475789,5.8841,169.9,169.88,58.72]
[1747552475985,1.9168,169.94,169.87,58.74]
[1747552476186,58.72,169.93,169.83,4.0176]
[1747552476387,58.7,169.92,169.82,117.42]
[1747552476793,58.7,169.92,169.82,123.3064]
[1747552476990,58.7,169.92,169.8,424.0]
[1747552477195,5.11467239,169.91,169.8,58.72]
[1747552477393,5.8865,169.83,169.8,58.72]
[1747552477695,5.8865,169.83,169.78,5.8877]
[1747552477894,5.8865,169.83,169.79,5.8875]
[1747552478299,1.9168,169.94,169.77,117.42]
[1747552478496,122.55467239,169.93,169.79,5.11467239]
[1747552479088,5.8842,169.89,169.83,5.8859]
[1747552479282,122.55467239,169.93,169.83,5.8859]
[1747552479486,122.55467239,169.93,169.82,58.72]
[1747552480388,122.55467239,169.93,169.83,5.886]
[1747552482281,5.8849,169.87,169.83,5.886]
[1747552482488,5.8849,169.87,169.84,5.8858]
[1747552482797,5.8845,169.89,169.82,58.72]
[1747552482996,58.68,169.9,169.84,5.8858]
[1747552483492,5.8845,169.88,169.84,5.8858]
[1747552485797,5.8845,169.88,169.85,5.8855]
[1747552485995,5.8842,169.89,169.82,58.72]
[1747552486387,5.8842,169.89,169.85,5.8853]
[1747552486587,5.8845,169.88,169.85,5.8853]
[1747552488700,5.8845,169.88,169.84,5.8858]
[1747552490294,5.8845,169.88,169.85,5.8853]
[1747552491601,5.8845,169.88,169.84,5.8857]
[1747552492101,5.8845,169.88,169.85,5.8855]
[1747552493004,5.8849,169.87,169.84,5.8858]
[1747552493804,5.8845,169.88,169.85,5.8855]
[1747552494398,58.58,169.9,169.82,58.72]
[1747552494603,5.8846,169.88,169.84,5.8858]
[1747552494907,58.58,169.9,169.84,5.8858]
[1747552495708,5.885,169.87,169.84,5.8858]
[1747552495907,58.58,169.9,169.82,64.6063]
[1747552496411,5.8854,169.86,169.83,5.8862]
[1747552497698,58.58,169.9,169.82,58.72]
[1747552497898,58.58,169.9,169.79,117.3]
[1747552498905,5.8858,169.85,169.81,5.8868]
[1747552499507,5.8858,169.85,169.79,58.72]
[1747552499707,5.8858,169.85,169.79,117.3]
[1747552500108,5.8858,169.85,169.82,5.8865]
[1747552500509,5.8849,169.87,169.79,117.3]
[1747552500711,5.8849,169.87,169.84,5.8855]
[1747552501602,5.8849,169.87,169.85,5.8855]
[1747552501908,117.3,169.91,169.83,58.72]
[1747552502105,117.3,169.91,169.83,117.3]
[1747552502408,5.8842,169.89,169.86,5.885]
[1747552503110,5.8845,169.88,169.86,5.885]
[1747552503605,5.8845,169.88,169.85,5.8854]
[1747552504605,5.8843,169.89,169.85,5.8854]
[1747552505509,5.8843,169.89,169.86,5.8851]
[1747552507711,5.8845,169.88,169.85,5.8854]
[1747552508711,58.72,169.91,169.83,58.72]
[1747552509712,58.72,169.91,169.84,5.8859]
[1747552510412,5.8847,169.88,169.84,5.8859]
[1747552510813,5.8842,169.89,169.83,58.72]
[1747552511414,5.8842,169.89,169.86,5.885]
[1747552511903,5.8838,169.9,169.84,4.86561259]
[1747552512308,58.72,169.91,169.84,4.86561259]
[1747552512509,5.884,169.9,169.86,5.8851]
[1747552512709,5.884,169.9,169.84,4.86561259]
[1747552513209,5.884,169.9,169.83,58.72]
[1747552514019,5.884,169.9,169.87,5.8846]
[1747552514616,1.9168,169.94,169.83,58.72]
[1747552514921,60.4768,169.94,169.83,63.83467239]
[1747552515114,1.9168,169.94,169.83,63.83467239]
[1747552515418,5.8831,169.92,169.89,5.8839]
[1747552515619,1.9168,169.94,169.86,58.56]
[1747552516019,5.8839,169.9,169.87,5.8846]
[1747552517308,58.56,169.93,169.87,5.8846]
[1747552517514,5.8836,169.91,169.88,5.8844]
[1747552517715,58.56,169.93,169.85,4.86092662]
[1747552518521,64.443,169.93,169.9,5.8837]
[1747552519321,5.883,169.93,169.9,5.8837]
[1747552521022,5.883,169.93,169.91,5.8834]
[1747552521323,117.12,169.95,169.86,58.56]
[1747552522321,5.8826,169.94,169.91,5.8834]
[1747552523325,123.0022,169.95,169.92,5.8831]
[1747552524125,5.8826,169.94,169.9,5.8835]
[1747552524325,117.12,169.95,169.88,1.9717]
[1747552524725,5.8828,169.93,169.9,5.8835]
[1747552525327,5.8825,169.94,169.9,5.8835]
[1747552525525,5.8825,169.94,169.88,1.9717]
[1747552526031,5.8825,169.94,169.9,5.8837]
[1747552527031,5.8828,169.93,169.9,5.8837]
[1747552530529,5.8825,169.94,169.91,5.8834]
[1747552530835,58.56,169.95,169.91,5.8834]
[1747552531335,5.8826,169.94,169.91,5.8834]
[1747552533635,5.8828,169.93,169.9,5.8837]
[1747552533934,58.56,169.95,169.88,1.9717]
[1747552534338,5.8827,169.94,169.91,5.8833]
[1747552535739,5.8828,169.93,169.91,5.8833]
[1747552536042,58.56,169.95,169.88,1.9717]
[1747552536344,5.8827,169.94,169.9,5.8837]
[1747552536531,5.8827,169.94,169.88,1.9717]
[1747552537038,58.56,169.95,169.88,1.9717]
[1747552537638,5.8825,169.94,169.91,5.8833]
[1747552537835,58.56,169.95,169.88,1.9717]
[1747552538134,5.8823,169.95,169.88,1.9717]
[1747552538939,5.8823,169.95,169.92,5.8829]
[1747552539327,5.8818,169.96,169.92,5.8829]
[1747552539536,5.8818,169.96,169.9,58.52]
[1747552540238,5.8821,169.95,169.92,5.8829]
[1747552540833,5.8821,169.95,169.9,58.52]
[1747552541041,80.32465636,169.97,169.9,64.4034]
[1747552541443,5.8827,169.94,169.9,64.4034]
[1747552541840,58.54,169.96,169.9,64.4034]
[1747552542039,5.8827,169.94,169.9,64.4034]
[1747552542339,58.54,169.96,169.9,58.52]
[1747552542539,5.8834,169.91,169.9,58.52]
[1747552542731,5.8834,169.91,169.87,60.4741]
[1747552542937,58.54,169.96,169.87,60.4741]
[1747552543143,5.8832,169.92,169.88,5.8842]
[1747552544142,5.8832,169.92,169.89,5.8841]
[1747552544342,5.8832,169.92,169.87,60.4741]
[1747552544748,5.8832,169.92,169.88,5.8842]
[1747552545038,5.8835,169.91,169.88,5.8842]
[1747552545640,58.54,169.96,169.89,5.884]